[Event "8. Arber-Schachopen 2019"]
[Site "Bodenmais"]
[Date "2019.07.30"]
[Round "4.13"]
[White "Fruehe, Norbert"]
[Black "Kleibel, Uwe"]
[Result "1/2-1/2"]
[ECO "B21"]
[WhiteElo "1936"]
[BlackElo "2217"]
[Annotator "ChessBase"]
[PlyCount "150"]
[EventDate "2019.07.27"]
[EventCountry "GER"]
[SourceTitle "playchess.com"]
[Source "ChessBase"]
[SourceQuality "1"]
[TimeControl "40/5400+30:1800+30"]

1. e4 {[%emt 0:00:00]} c5 {[%emt 0:00:00]} 2. d4 {[%emt 0:00:00]} cxd4 {[%emt 0:00:00]} 3. c3 {[%emt 0:00:00]} dxc3 {[%emt 0:00:00]} 4. Nxc3 {[%emt 0:00:04]} Nc6 {[%emt 0:00:01]} 5. Bc4 {[%emt 0:00:09]} e6 {[%emt 0:00:08]} 6. Nf3 {[%emt 0:00:11]} Nge7 {[%emt 0:00:10]} 7. O-O {[%emt 0:00:28]} Ng6 {[%emt 0:00:07]} 8. Qe2 {[%emt 0:02:16]} Be7 {[%emt 0:00:07]} 9. Rd1 {[%emt 0:02:25]} a6 {[%emt 0:00:01]} 10. Be3 {[%emt 0:06:40]} O-O {[%emt 0:00:23]} 11. Rac1 {[%emt 0:02:27]} b5 {[%emt 0:00:33]} 12. Bb3 {[%emt 0:02:07]} Na5 {[%emt 0:01:53]} 13. Bc2 {[%emt 0:03:47]} Nc4 {[%emt 0:00:41]} 14. Bb3 {[%emt 0:03:00]} Na5 {[%emt 0:00:36]} 15. Bc2 {[%emt 0:02:36]} Nc4 {[%emt 0:00:04]} 16. Bb3 {[%emt 0:00:47]} Nxe3 {[%emt 0:00:10]} 17. Qxe3 {[%emt 0:00:06]} Bb7 {[%emt 0:00:00]} 18. Rc2 {[%emt 0:03:29]} Rc8 {[%emt 0:02:41]} 19. Rcd2 {[%emt 0:06:25]} Bc5 {[%emt 0:01:11]} 20. Qe2 {[%emt 0:06:26]} Rc7 {[%emt 0:03:47]} 21. Nd4 {[%emt 0:07:08]} Qg5 {[%emt 0:04:00]} 22. Nf3 {[%emt 0:05:23]} Qe7 {[%emt 0:01:24]} 23. Nd4 {[%emt 0:01:01]} Qg5 {[%emt 0:06:55]} 24. Nf3 {[%emt 0:00:16]} Qe7 {[%emt 0:00:40]} 25. Nd4 {[%emt 0:00:10]} d6 {[%emt 0:13:35]} 26. Qg4 {[%emt 0:04:05]} Re8 {[%emt 0:01:17]} 27. Nf3 {[%emt 0:06:24]} Qf6 {[%emt 0:14:56]} 28. g3 {[%emt 0:08:01]} Ne5 {[%emt 0:01:21]} 29. Nxe5 {[%emt 0:01:04]} Qxe5 {[%emt 0:00:02]} 30. Bc2 {[%emt 0:05:50]} Rec8 {[%emt 0:02:52]} 31. Bb1 {[%emt 0:01:52]} Bb4 {[%emt 0:04:06]} 32. a3 {[%emt 0:06:13]} Bxc3 {[%emt 0:01:54]} 33. bxc3 {[%emt 0:00:24]} Rd8 {[%emt 0:00:51]} 34. f4 {[%emt 0:02:55]} Qc5+ {[%emt 0:03:46]} 35. Kf1 {[%emt 0:00:44]} Qxa3 {[%emt 0:00:15]} 36. e5 {[%emt 0:00:29]} Rxc3 {[%emt 0:03:06]} 37. Rd3 {[%emt 0:06:45]} d5 {[%emt 0:08:50]} 38. Qh4 {[%emt 0:03:27]} Rdc8 {[%emt 0:00:13]} 39. Qxh7+ {[%emt 0:01:07]} Kf8 {[%emt 0:00:07]} 40. Qh8+ {[%emt 0:00:19]} Ke7 {[%emt 0:00:00]} 41. Qxg7 {[%emt 0:30:27]} Rxd3 {[%emt 0:30:35]} 42. Bxd3 {[%emt 0:01:47]} Rc1 {[%emt 0:04:03]} 43. Be2 {[%emt 0:00:00]} d4 {[%emt 0:00:00]} 44. Qf6+ {[%emt 0:00:00]} Ke8 {[%emt 0:00:00]} 45. Qh8+ {[%emt 0:00:00]} Kd7 {[%emt 0:00:00]} 46. Qg8 {[%emt 0:00:00]} Rxd1+ {[%emt 0:00:00]} 47. Bxd1 {[%emt 0:00:00]} Qd3+ {[%emt 0:00:00]} 48. Be2 {[%emt 0:00:00]} Bg2+ {[%emt 0:00:00]} 49. Ke1 {[%emt 0:00:00]} Qc3+ {[%emt 0:00:00]} 50. Kd1 {[%emt 0:00:00]} Qa1+ {[%emt 0:05:11]} 51. Kd2 {[%emt 0:00:00]} Qb2+ {[%emt 0:00:53]} 52. Kd1 {[%emt 0:00:00]} Qb1+ {[%emt 0:01:42]} 53. Kd2 {[%emt 0:00:00]} Qb4+ {[%emt 0:00:22]} 54. Kd1 {[%emt 0:00:00]} Bd5 {[%emt 0:01:23]} 55. Qxf7+ {[%emt 0:00:00]} Kd8 {[%emt 0:00:00]} 56. Qg8+ {[%emt 0:00:00]} Kc7 {[%emt 0:00:18]} 57. Qh7+ {[%emt 0:00:00]} Kb6 {[%emt 0:00:22]} 58. Qd3 {[%emt 0:00:00]} Bb3+ {[%emt 0:00:59]} 59. Kc1 {[%emt 0:00:00]} Qc5+ {[%emt 0:01:09]} 60. Kb2 {[%emt 0:04:43]} Bc4 {[%emt 0:00:31]} 61. Qd2 {[%emt 0:00:35]} a5 {[%emt 0:06:35]} 62. h4 {[%emt 0:01:21]} a4 {[%emt 0:00:10]} 63. h5 {[%emt 0:00:40]} a3+ {[%emt 0:00:09]} 64. Kb1 {[%emt 0:02:19]} a2+ {[%emt 0:01:00]} 65. Ka1 {[%emt 0:01:21]} d3 {[%emt 0:00:13]} 66. Bd1 {[%emt 0:00:20]} Qd4+ {[%emt 0:00:22]} 67. Qb2 {[%emt 0:00:19]} Qg1 {[%emt 0:00:10]} 68. Qd2 {[%emt 0:01:13]} Qxg3 {[%emt 0:00:36]} 69. h6 {[%emt 0:01:17]} Qh4 {[%emt 0:00:40]} 70. Qe3+ {[%emt 0:00:08]} Ka6 {[%emt 0:00:15]} 71. Qc5 {[%emt 0:00:17]} Qe1 {[%emt 0:10:07]} 72. Qd6+ {[%emt 0:00:13]} Kb7 {[%emt 0:00:54]} 73. Qd7+ {[%emt 0:00:15]} Ka6 {[%emt 0:00:17]} 74. Qd6+ {[%emt 0:00:04]} Ka5 {[%emt 0:02:23]} 75. Qa3+ {[%emt 0:00:03]} Kb6 1/2-1/2

[Event "8. Arber-Schachopen 2019"]
[Site "Bodenmais"]
[Date "2019.07.30"]
[Round "4.14"]
[White "Hoffmann, Sebastian"]
[Black "Pfeifer, Wilfried"]
[Result "1/2-1/2"]
[ECO "B13"]
[WhiteElo "2199"]
[BlackElo "1916"]
[Annotator "NA"]
[PlyCount "195"]
[EventDate "2019.07.27"]
[EventCountry "GER"]
[SourceTitle "playchess.com"]
[Source "ChessBase"]
[SourceQuality "1"]
[TimeControl "40/5400+30:1800+30"]

1. e4 {[%emt 0:00:00]} c6 {[%emt 0:00:00]} 2. d4 {[%emt 0:00:00]} d5 {[%emt 0:00:00]} 3. exd5 {[%emt 0:00:00]} cxd5 {[%emt 0:00:00]} 4. Bf4 {[%emt 0:00:02]} Nc6 {[%emt 0:02:37]} 5. c3 {[%emt 0:00:09]} Bf5 {[%emt 0:03:44]} 6. Nd2 {[%emt 0:00:56]} e6 {[%emt 0:01:28]} 7. Ngf3 {[%emt 0:00:08]} Bd6 {[%emt 0:06:50]} 8. Bxd6 {[%emt 0:01:11]} Qxd6 {[%emt 0:00:02]} 9. Bb5 {[%emt 0:00:08]} a6 {[%emt 0:08:05]} 10. Bxc6+ {[%emt 0:00:10]} bxc6 {[%emt 0:00:13]} 11. Nb3 {[%emt 0:03:55]} Bg4 {[%emt 0:03:13]} 12. O-O {[%emt 0:01:59]} Nf6 {[%emt 0:00:24]} 13. h3 {[%emt 0:01:34]} Bxf3 {[%emt 0:00:21]} 14. Qxf3 {[%emt 0:00:07]} Nd7 {[%emt 0:00:41]} 15. Qe3 {[%emt 0:03:16]} O-O {[%emt 0:04:01]} 16. Na5 {[%emt 0:02:52]} c5 {[%emt 0:05:27]} 17. dxc5 Qxc5 {[%emt 0:00:06]} 18. Qxc5 {[%emt 0:20:01]} Nxc5 19. c4 {[%emt 0:03:12]} dxc4 {[%emt 0:04:24]} 20. Nxc4 {[%emt 0:06:40]} Rfd8 {[%emt 0:04:17]} 21. Rfd1 {[%emt 0:01:07]} f6 {[%emt 0:07:22]} 22. Kf1 {[%emt 0:07:41]} Kf7 {[%emt 0:10:30]} 23. Ke2 {[%emt 0:02:39]} Na4 {[%emt 0:06:48]} 24. Rxd8 {[%emt 0:04:15]} Rxd8 {[%emt 0:00:07]} 25. Rc1 {[%emt 0:00:32]} Rb8 {[%emt 0:07:38]} 26. b3 {[%emt 0:02:11]} Nb6 {[%emt 0:02:24]} 27. Nxb6 {[%emt 0:00:52]} Rxb6 {[%emt 0:00:02]} 28. Rc7+ {[%emt 0:00:09]} Kg6 {[%emt 0:00:28]} 29. Kd3 {[%emt 0:00:36]} Rd6+ {[%emt 0:01:19]} 30. Kc3 {[%emt 0:04:47]} Rd1 {[%emt 0:04:42]} 31. Kb4 {[%emt 0:03:12]} Rd2 {[%emt 0:00:20]} 32. a4 {[%emt 0:00:07]} Rxf2 {[%emt 0:00:11]} 33. Ka5 {[%emt 0:00:05]} Rxg2 {[%emt 0:04:28]} 34. Kxa6 {[%emt 0:00:52]} f5 {[%emt 0:00:45]} 35. b4 {[%emt 0:03:19]} f4 {[%emt 0:00:16]} 36. b5 {[%emt 0:03:52]} e5 {[%emt 0:02:25]} 37. b6 {[%emt 0:03:23]} Rb2 {[%emt 0:05:25]} 38. b7 {[%emt 0:05:08]} Rxb7 {[%emt 0:00:03]} 39. Kxb7 {[%emt 0:00:19]} f3 {[%emt 0:00:10]} 40. Rc1 {[%emt 0:00:59]} e4 {[%emt 0:00:33]} 41. Rf1 {[%emt 0:30:16]} Kf5 {[%emt 0:32:31]} 42. a5 {[%emt 0:15:05]} Kf4 {[%emt 0:00:03]} 43. a6 {[%emt 0:01:13]} e3 {[%emt 0:00:03]} 44. a7 {[%emt 0:00:00]} e2 {[%emt 0:00:00]} 45. Ra1 {[%emt 0:00:00]} f2 {[%emt 0:00:00]} 46. a8=Q {[%emt 0:00:00]} e1=Q {[%emt 0:00:00]} 47. Qf8+ {[%emt 0:00:00]} Kg3 {[%emt 0:00:00]} 48. Ra3+ {[%emt 0:02:20]} Kh2 {[%emt 0:00:00]} 49. Qf4+ {[%emt 0:00:01]} Kh1 {[%emt 0:00:00]} 50. Qf3+ {[%emt 0:00:44]} Kh2 {[%emt 0:00:00]} 51. Qf4+ {[%emt 0:00:38]} Kh1 {[%emt 0:00:00]} 52. Rf3 {[%emt 0:02:15]} Qb1+ {[%emt 0:00:00]} 53. Kc7 {[%emt 0:00:13]} Qc2+ {[%emt 0:00:00]} 54. Kd6 {[%emt 0:00:15]} Kg1 {[%emt 0:00:00]} 55. Qg3+ {[%emt 0:01:13]} Kf1 {[%emt 0:00:00]} 56. Qf4 {[%emt 0:00:37]} g5 {[%emt 0:00:00]} 57. Qf8 {[%emt 0:00:39]} Kg1 {[%emt 0:00:00]} 58. Rg3+ {[%emt 0:00:27]} Kh2 {[%emt 0:00:00]} 59. Qf3 {[%emt 0:00:36]} f1=Q {[%emt 0:00:00]} 60. Qxf1 {[%emt 0:00:24]} Kxg3 {[%emt 0:00:00]} 61. Qg1+ {[%emt 0:00:26]} Qg2 {[%emt 0:00:00]} 62. Qe3+ {[%emt 0:00:01]} Kh2 {[%emt 0:00:00]} 63. Ke7 {[%emt 0:00:53]} h6 {[%emt 0:00:00]} 64. Qe5+ {[%emt 0:00:46]} Kxh3 65. Qe6+ Kg3 {[%emt 0:00:00]} 66. Qxh6 {[%emt 0:00:04]} Qe4+ {[%emt 0:00:00]} 67. Kd7 {[%emt 0:01:18]} Qd4+ {[%emt 0:00:00]} 68. Ke7 {[%emt 0:00:36]} g4 {[%emt 0:00:00]} 69. Qh1 {[%emt 0:00:28]} Qe3+ {[%emt 0:00:00]} 70. Kd6 {[%emt 0:00:01]} Qf3 {[%emt 0:00:00]} 71. Qg1+ {[%emt 0:00:10]} Kh3 {[%emt 0:00:00]} 72. Qd4 {[%emt 0:00:52]} g3 {[%emt 0:00:00]} 73. Qh8+ {[%emt 0:00:20]} Kg2 {[%emt 0:00:00]} 74. Qb2+ {[%emt 0:00:19]} Kg1 {[%emt 0:00:03]} 75. Qa1+ {[%emt 0:01:22]} Qf1 {[%emt 0:00:22]} 76. Qd4+ {[%emt 0:00:10]} Qf2 {[%emt 0:00:10]} 77. Qa1+ {[%emt 0:00:07]} Kg2 {[%emt 0:03:10]} 78. Qa8+ {[%emt 0:00:02]} Qf3 {[%emt 0:01:50]} 79. Qa2+ {[%emt 0:00:03]} Kh3 {[%emt 0:00:56]} 80. Qe6+ {[%emt 0:00:39]} Qg4 {[%emt 0:00:46]} 81. Qh6+ {[%emt 0:00:45]} Qh4 {[%emt 0:00:22]} 82. Qe6+ {[%emt 0:00:20]} Kh2 {[%emt 0:00:15]} 83. Qe5 {[%emt 0:00:14]} Qd8+ {[%emt 0:02:07]} 84. Kc6 {[%emt 0:00:18]} Qd3 {[%emt 0:00:37]} 85. Qb2+ {[%emt 0:01:51]} g2 {[%emt 0:00:16]} 86. Qh8+ {[%emt 0:01:02]} Kg3 {[%emt 0:02:17]} 87. Qg7+ {[%emt 0:00:29]} Kf2 {[%emt 0:00:10]} 88. Qb2+ {[%emt 0:00:26]} Qe2 {[%emt 0:00:11]} 89. Qd4+ {[%emt 0:00:08]} Qe3 {[%emt 0:00:49]} 90. Qb2+ {[%emt 0:00:51]} Qe2 {[%emt 0:02:02]} 91. Qd4+ {[%emt 0:00:10]} Kg3 {[%emt 0:03:49]} 92. Qd6+ {[%emt 0:00:00]} Kf3 {[%emt 0:01:46]} 93. Qf6+ {[%emt 0:00:20]} Ke3 {[%emt 0:00:31]} 94. Qe5+ {[%emt 0:01:05]} Kd3 {[%emt 0:01:12]} 95. Qb5+ {[%emt 0:00:38]} Kd2 {[%emt 0:00:15]} 96. Qb2+ {[%emt 0:00:37]} Ke1 {[%emt 0:01:29]} 97. Qa1+ {[%emt 0:00:33]} Kf2 {[%emt 0:01:55]} 98. Kd5 1/2-1/2

[Event "8. Arber-Schachopen 2019"]
[Site "Bodenmais"]
[Date "2019.07.30"]
[Round "4.15"]
[White "Beck, Gerald"]
[Black "Reuter, Roland"]
[Result "0-1"]
[ECO "A20"]
[WhiteElo "2176"]
[BlackElo "1930"]
[Annotator "NA"]
[PlyCount "115"]
[EventDate "2019.07.27"]
[EventCountry "GER"]
[SourceTitle "playchess.com"]
[Source "ChessBase"]
[SourceQuality "1"]
[TimeControl "40/5400+30:1800+30"]

1. c4 {[%emt 0:00:00]} e5 {[%emt 0:02:15]} 2. g3 {[%emt 0:00:00]} Nf6 {[%emt 0:00:54]} 3. Bg2 {[%emt 0:01:44]} Nc6 {[%emt 0:00:51]} 4. Nc3 {[%emt 0:00:15]} Be7 {[%emt 0:00:56]} 5. Nf3 {[%emt 0:08:00]} O-O {[%emt 0:00:16]} 6. O-O {[%emt 0:02:32]} d5 {[%emt 0:00:38]} 7. cxd5 {[%emt 0:08:52]} Nxd5 {[%emt 0:00:07]} 8. Qb3 {[%emt 0:02:37]} Nb6 {[%emt 0:00:42]} 9. d3 {[%emt 0:09:50]} Be6 {[%emt 0:00:15]} 10. Qd1 {[%emt 0:00:44]} h6 {[%emt 0:01:08]} 11. a3 {[%emt 0:04:26]} a5 {[%emt 0:01:28]} 12. Be3 {[%emt 0:04:48]} Nd5 {[%emt 0:04:15]} 13. Nxd5 Bxd5 {[%emt 0:01:03]} 14. Rc1 {[%emt 0:05:24]} Re8 {[%emt 0:03:59]} 15. Qa4 {[%emt 0:02:48]} Bf6 {[%emt 0:02:09]} 16. Rc5 {[%emt 0:13:18]} Qd6 {[%emt 0:03:42]} 17. Rxd5 {[%emt 0:00:40]} Qxd5 {[%emt 0:00:10]} 18. Nd4 {[%emt 0:00:06]} Qxg2+ {[%emt 0:02:18]} 19. Kxg2 {[%emt 0:01:25]} exd4 {[%emt 0:00:05]} 20. Bf4 {[%emt 0:03:47]} Rxe2 {[%emt 0:00:21]} 21. Qb5 {[%emt 0:01:08]} Rae8 {[%emt 0:05:56]} 22. Rc1 {[%emt 0:10:23]} Bg5 {[%emt 0:00:26]} 23. Qxb7 {[%emt 0:03:31]} Ne5 {[%emt 0:01:01]} 24. Rxc7 {[%emt 0:02:14]} Nxd3 {[%emt 0:00:41]} 25. Rxf7 {[%emt 0:05:00]} Rxf2+ {[%emt 0:00:25]} 26. Kh3 {[%emt 0:00:10]} Nxf4+ {[%emt 0:00:39]} 27. gxf4 {[%emt 0:00:25]} Bf6 {[%emt 0:01:17]} 28. Qd5 {[%emt 0:01:28]} Kh8 {[%emt 0:01:08]} 29. Rxf6 {[%emt 0:02:31]} gxf6 {[%emt 0:00:53]} 30. Qxd4 {[%emt 0:00:05]} Ree2 {[%emt 0:00:32]} 31. Qxf6+ {[%emt 0:00:48]} Kh7 {[%emt 0:00:14]} 32. Kg3 {[%emt 0:01:35]} Rg2+ {[%emt 0:01:41]} 33. Kf3 {[%emt 0:00:09]} Rxb2 {[%emt 0:01:23]} 34. h4 {[%emt 0:01:37]} Rgf2+ {[%emt 0:07:55]} 35. Ke4 {[%emt 0:02:12]} Rfe2+ {[%emt 0:01:33]} 36. Kd3 {[%emt 0:02:11]} Red2+ {[%emt 0:00:51]} 37. Kc3 {[%emt 0:00:23]} Rdc2+ {[%emt 0:00:39]} 38. Kd3 {[%emt 0:00:19]} Rd2+ {[%emt 0:00:06]} 39. Kc4 {[%emt 0:01:12]} Rdc2+ {[%emt 0:00:06]} 40. Kd5 {[%emt 0:00:30]} Rd2+ {[%emt 0:01:09]} 41. Ke4 {[%emt 0:05:14]} Re2+ {[%emt 0:00:06]} 42. Kf3 {[%emt 0:00:47]} Rf2+ {[%emt 0:00:22]} 43. Kg4 {[%emt 0:00:45]} Rg2+ {[%emt 0:05:22]} 44. Kh5 {[%emt 0:00:17]} a4 {[%emt 0:03:13]} 45. Qxh6+ {[%emt 0:02:35]} Kg8 {[%emt 0:00:07]} 46. Qc6 {[%emt 0:03:45]} Kg7 {[%emt 0:01:28]} 47. Qxa4 {[%emt 0:00:20]} Rbd2 {[%emt 0:02:00]} 48. Qc6 {[%emt 0:01:29]} Rc2 {[%emt 0:00:21]} 49. Qd5 {[%emt 0:01:47]} Rcd2 {[%emt 0:01:38]} 50. Qe5+ {[%emt 0:00:17]} Kf7 {[%emt 0:00:17]} 51. a4 {[%emt 0:01:22]} Rde2 {[%emt 0:00:45]} 52. Qf5+ {[%emt 0:00:47]} Kg7 {[%emt 0:00:58]} 53. a5 {[%emt 0:01:03]} Ra2 {[%emt 0:01:38]} 54. Qe5+ {[%emt 0:01:40]} Kf7 {[%emt 0:01:24]} 55. Qb5 {[%emt 0:02:01]} Ke6 {[%emt 0:00:58]} 56. a6 {[%emt 0:01:59]} Rad2 {[%emt 0:00:18]} 57. Qe5+ {[%emt 0:00:29]} Kf7 {[%emt 0:00:30]} 58. a7 {[%emt 0:00:36]} 0-1

[Event "8. Arber-Schachopen 2019"]
[Site "Bodenmais"]
[Date "2019.07.30"]
[Round "4.16"]
[White "Schmid, Wolfgang"]
[Black "Vanhee, Lars"]
[Result "1/2-1/2"]
[ECO "B11"]
[WhiteElo "2162"]
[BlackElo "1895"]
[Annotator "ChessBase"]
[PlyCount "85"]
[EventDate "2019.07.27"]
[EventCountry "GER"]
[SourceTitle "playchess.com"]
[Source "ChessBase"]
[SourceQuality "1"]
[TimeControl "40/5400+30:1800+30"]

1. e4 {[%emt 0:00:00]} c6 {[%emt 0:00:00]} 2. Nc3 {[%emt 0:00:21]} d5 {[%emt 0:00:00]} 3. Nf3 {[%emt 0:00:08]} Bg4 {[%emt 0:01:36]} 4. h3 {[%emt 0:00:11]} Bxf3 {[%emt 0:03:14]} 5. Qxf3 {[%emt 0:00:29]} e6 {[%emt 0:00:55]} 6. exd5 {[%emt 0:09:33]} cxd5 {[%emt 0:02:08]} 7. d4 {[%emt 0:00:34]} Nf6 {[%emt 0:04:18]} 8. Bb5+ {[%emt 0:02:30]} Nc6 {[%emt 0:01:45]} 9. O-O {[%emt 0:04:14]} Bd6 {[%emt 0:04:26]} 10. Bg5 {[%emt 0:05:33]} h6 {[%emt 0:02:59]} 11. Bf4 {[%emt 0:13:21]} O-O {[%emt 0:03:37]} 12. Rad1 {[%emt 0:02:49]} a6 {[%emt 0:05:56]} 13. Bxc6 {[%emt 0:06:23]} bxc6 {[%emt 0:00:22]} 14. b3 {[%emt 0:06:53]} Bxf4 {[%emt 0:08:10]} 15. Qxf4 {[%emt 0:00:09]} Qb8 {[%emt 0:00:15]} 16. Qe3 {[%emt 0:03:51]} Re8 {[%emt 0:04:22]} 17. Rfe1 {[%emt 0:02:03]} Qd6 {[%emt 0:03:45]} 18. Na4 {[%emt 0:06:51]} Ne4 {[%emt 0:05:59]} 19. f3 {[%emt 0:01:20]} Ng3 {[%emt 0:04:17]} 20. Qe5 {[%emt 0:01:32]} Qxe5 {[%emt 0:00:30]} 21. Rxe5 {[%emt 0:00:30]} Nf5 22. Nc5 {[%emt 0:03:32]} Nd6 {[%emt 0:05:46]} 23. Kf2 {[%emt 0:00:30]} Ra7 {[%emt 0:02:34]} 24. Re3 {[%emt 0:01:03]} a5 25. a4 {[%emt 0:02:13]} Kf8 {[%emt 0:03:14]} 26. g4 {[%emt 0:00:30]} g6 {[%emt 0:03:50]} 27. Rde1 {[%emt 0:02:48]} Rae7 {[%emt 0:00:43]} 28. Rc3 Rc8 29. Nd3 {[%emt 0:03:31]} Rec7 {[%emt 0:02:09]} 30. Nc5 Re7 31. Kg3 {[%emt 0:00:52]} Kg7 {[%emt 0:01:08]} 32. h4 {[%emt 0:00:49]} Kh7 {[%emt 0:02:00]} 33. Kf4 {[%emt 0:00:13]} Kg7 {[%emt 0:04:02]} 34. Kg3 {[%emt 0:02:17]} Kh7 {[%emt 0:00:32]} 35. Rce3 {[%emt 0:00:44]} Rce8 {[%emt 0:00:53]} 36. Nd3 {[%emt 0:00:36]} Kg7 {[%emt 0:00:35]} 37. Rc1 {[%emt 0:00:12]} Rb8 {[%emt 0:01:40]} 38. Ne5 {[%emt 0:02:28]} Rc7 {[%emt 0:00:14]} 39. Rc3 {[%emt 0:00:18]} Rbc8 {[%emt 0:00:24]} 40. Nd3 {[%emt 0:02:30]} Re7 {[%emt 0:01:03]} 41. Rc5 {[%emt 0:32:18]} Nb7 {[%emt 0:30:36]} 42. Rc3 {[%emt 0:00:21]} Nd6 {[%emt 0:00:08]} 43. Rc5 1/2-1/2

[Event "8. Arber-Schachopen 2019"]
[Site "Bodenmais"]
[Date "2019.07.30"]
[Round "4.17"]
[White "Fauth, Dietmar"]
[Black "Hoehfeld, Markus"]
[Result "1-0"]
[ECO "C00"]
[WhiteElo "2122"]
[BlackElo "1895"]
[Annotator "NA"]
[PlyCount "65"]
[EventDate "2019.07.27"]
[EventCountry "GER"]
[SourceTitle "playchess.com"]
[Source "ChessBase"]
[SourceQuality "1"]
[TimeControl "40/5400+30:1800+30"]

1. e4 {[%emt 0:00:00]} e6 {[%emt 0:00:00]} 2. d4 {[%emt 0:00:00]} d5 {[%emt 0:00:00]} 3. Bd3 {[%emt 0:00:00]} Nf6 {[%emt 0:05:07]} 4. e5 {[%emt 0:01:22]} Nfd7 {[%emt 0:00:02]} 5. f4 {[%emt 0:00:14]} c5 {[%emt 0:00:58]} 6. c3 {[%emt 0:00:37]} Nc6 {[%emt 0:06:42]} 7. Nf3 {[%emt 0:01:31]} Qb6 {[%emt 0:04:15]} 8. Bc2 {[%emt 0:00:51]} g6 {[%emt 0:12:29]} 9. O-O {[%emt 0:04:57]} a5 {[%emt 0:11:14]} 10. Kh1 {[%emt 0:02:30]} Qa7 {[%emt 0:05:06]} 11. Na3 {[%emt 0:08:26]} b6 {[%emt 0:09:30]} 12. Nb5 {[%emt 0:09:03]} Qb7 {[%emt 0:01:50]} 13. Qe2 {[%emt 0:10:32]} Ndb8 {[%emt 0:04:12]} 14. f5 {[%emt 0:11:46]} Na7 {[%emt 0:02:34]} 15. fxe6 {[%emt 0:03:31]} Bxe6 {[%emt 0:05:39]} 16. Ba4 {[%emt 0:03:12]} Nxb5 {[%emt 0:01:36]} 17. Bxb5+ {[%emt 0:00:20]} Nc6 {[%emt 0:02:03]} 18. Bg5 {[%emt 0:04:48]} h6 {[%emt 0:05:14]} 19. Bf6 {[%emt 0:01:44]} Rg8 {[%emt 0:01:44]} 20. Rad1 {[%emt 0:01:00]} Be7 {[%emt 0:05:48]} 21. Rd2 {[%emt 0:09:40]} Qc7 {[%emt 0:06:03]} 22. c4 {[%emt 0:10:40]} O-O-O {[%emt 0:02:15]} 23. dxc5 {[%emt 0:05:44]} Bxf6 {[%emt 0:01:48]} 24. cxb6 {[%emt 0:00:59]} Qxb6 {[%emt 0:00:20]} 25. exf6 {[%emt 0:00:21]} dxc4 {[%emt 0:00:52]} 26. Bxc4 {[%emt 0:00:31]} Rge8 {[%emt 0:01:35]} 27. Rxd8+ {[%emt 0:00:58]} Kxd8 {[%emt 0:01:01]} 28. Rd1+ {[%emt 0:01:02]} Kc7 {[%emt 0:00:13]} 29. Rc1 {[%emt 0:03:41]} Kb8 {[%emt 0:01:44]} 30. Qe4 {[%emt 0:02:07]} g5 {[%emt 0:01:45]} 31. h3 {[%emt 0:01:04]} Bxc4 {[%emt 0:00:45]} 32. Qxe8+ {[%emt 0:00:29]} Ka7 {[%emt 0:00:29]} 33. Rxc4 {[%emt 0:00:18]} 1-0

[Event "8. Arber-Schachopen 2019"]
[Site "Bodenmais"]
[Date "2019.07.30"]
[Round "4.18"]
[White "Seifert, Ronny"]
[Black "Gruettner, Ralf"]
[Result "0-1"]
[ECO "A43"]
[WhiteElo "1888"]
[BlackElo "2118"]
[Annotator "ChessBase"]
[PlyCount "90"]
[EventDate "2019.07.27"]
[EventCountry "GER"]
[SourceTitle "playchess.com"]
[Source "ChessBase"]
[SourceQuality "1"]
[TimeControl "40/5400+30:1800+30"]

1. d4 {[%emt 0:00:00]} c5 {[%emt 0:00:00]} 2. c3 {[%emt 0:00:14]} e6 {[%emt 0:01:07]} 3. Nf3 {[%emt 0:00:38]} Nf6 {[%emt 0:00:10]} 4. Bf4 {[%emt 0:03:06]} Be7 {[%emt 0:03:39]} 5. e3 {[%emt 0:00:39]} O-O {[%emt 0:00:38]} 6. Be2 {[%emt 0:02:28]} b6 {[%emt 0:05:23]} 7. Nbd2 {[%emt 0:01:02]} Bb7 {[%emt 0:01:47]} 8. h3 {[%emt 0:01:03]} d5 {[%emt 0:02:57]} 9. O-O {[%emt 0:00:54]} Nc6 {[%emt 0:05:00]} 10. Ne5 {[%emt 0:03:59]} Nxe5 {[%emt 0:04:30]} 11. Bxe5 {[%emt 0:01:09]} Nd7 {[%emt 0:00:52]} 12. Bh2 {[%emt 0:01:57]} Nf6 {[%emt 0:13:21]} 13. Nf3 {[%emt 0:02:53]} Ne4 {[%emt 0:06:01]} 14. Bd3 {[%emt 0:02:07]} Bd6 {[%emt 0:03:45]} 15. Bxd6 {[%emt 0:03:00]} Qxd6 {[%emt 0:07:22]} 16. Nd2 {[%emt 0:07:16]} Nxd2 {[%emt 0:02:37]} 17. Qxd2 {[%emt 0:01:07]} e5 {[%emt 0:05:16]} 18. dxe5 {[%emt 0:03:01]} Qxe5 {[%emt 0:00:19]} 19. Qc2 {[%emt 0:04:20]} h6 {[%emt 0:01:09]} 20. Rfe1 {[%emt 0:06:51]} Rfe8 {[%emt 0:02:20]} 21. Qe2 {[%emt 0:04:08]} Rad8 {[%emt 0:01:44]} 22. Qg4 {[%emt 0:04:57]} Bc8 {[%emt 0:04:52]} 23. Qf4 {[%emt 0:06:12]} Qxf4 {[%emt 0:00:54]} 24. exf4 {[%emt 0:00:29]} Rxe1+ {[%emt 0:00:32]} 25. Rxe1 {[%emt 0:00:01]} Kf8 {[%emt 0:00:26]} 26. Bb5 {[%emt 0:03:54]} Bd7 {[%emt 0:01:48]} 27. Bd3 {[%emt 0:04:15]} Bc6 {[%emt 0:01:01]} 28. Rd1 {[%emt 0:08:06]} d4 {[%emt 0:15:27]} 29. Bc2 {[%emt 0:02:45]} Ke7 {[%emt 0:01:26]} 30. cxd4 {[%emt 0:04:31]} Rxd4 {[%emt 0:00:09]} 31. Rxd4 {[%emt 0:03:05]} cxd4 {[%emt 0:00:01]} 32. Bd3 {[%emt 0:00:23]} a5 {[%emt 0:02:23]} 33. f3 {[%emt 0:02:40]} Kd6 {[%emt 0:00:56]} 34. Kf2 {[%emt 0:01:13]} Kc5 {[%emt 0:01:16]} 35. h4 {[%emt 0:02:19]} Bd5 {[%emt 0:01:19]} 36. a3 {[%emt 0:00:47]} f6 {[%emt 0:02:05]} 37. Ke1 {[%emt 0:03:15]} b5 {[%emt 0:00:34]} 38. Kd2 {[%emt 0:02:49]} b4 {[%emt 0:01:00]} 39. axb4+ {[%emt 0:02:29]} Kxb4 {[%emt 0:00:42]} 40. Bc2 {[%emt 0:03:18]} Bb3 {[%emt 0:00:44]} 41. Bd3 {[%emt 0:02:26]} Bc4 {[%emt 0:00:57]} 42. Bc2 {[%emt 0:02:31]} d3 {[%emt 0:03:45]} 43. Bb1 {[%emt 0:01:23]} Kb3 {[%emt 0:00:41]} 44. Kc1 {[%emt 0:00:56]} a4 {[%emt 0:01:37]} 45. g3 {[%emt 0:01:29]} d2+ {[%emt 0:01:16]} 0-1